bitfinex/quotes_ETHUSD_20230405
["timestamp","ask_amount","ask_price","bid_price","bid_amount"]
[1680666334141,0.47050664,1910.5,1910.3,5.72253285]
[1680666334406,0.4684453,1910.5,1910.3,5.7174]
[1680666334605,0.4684453,1910.5,1910.3,6.54113745]
[1680666334842,0.4684453,1910.5,1910.3,6.8080003]
[1680666335019,0.4684453,1910.5,1910.3,6.80286745]
[1680666341330,0.4684453,1910.5,1910.3,7.32633745]
[1680666341529,0.4684453,1910.5,1910.4,1.60890745]
[1680666342327,0.4684453,1910.5,1910.4,0.78517]
[1680666342529,0.4684453,1910.5,1910.4,1.60890745]
[1680666342848,0.4684453,1910.5,1910.4,0.78517]
[1680666343051,0.4684453,1910.5,1910.4,1.60890745]
[1680666343252,0.4684453,1910.5,1910.4,2.45057705]
[1680666343422,0.4684453,1910.5,1910.4,1.92712705]
[1680666344261,0.4684453,1910.5,1910.4,2.45057705]
[1680666344430,0.4684453,1910.5,1910.4,2.71722816]
[1680666345567,0.11000001,1911.0,1910.4,3.76412816]
[1680666345731,0.23,1910.9,1910.5,1.19907956]
[1680666345931,0.23,1910.9,1910.6,0.26169]
[1680666346333,0.51930969,1910.8,1910.6,0.26169]
[1680666348357,0.51930969,1910.8,1910.6,0.25863482]
[1680666359142,0.51930969,1910.8,1910.6,1.08130156]
[1680666359341,0.51930969,1910.8,1910.6,0.25863482]
[1680666360666,0.68634066,1910.8,1910.5,12.22466674]
[1680666360866,0.23,1910.7,1910.5,13.3150553]
[1680666361072,0.23,1910.7,1910.5,12.29666674]
[1680666361269,0.23,1910.7,1910.5,12.55837674]
[1680666362353,0.23,1910.7,1910.5,12.29666674]
[1680666362556,0.23,1910.7,1910.5,11.474]
[1680666362786,0.23,1910.7,1910.5,0.074]
[1680666362990,0.23,1910.7,1910.5,0.072]
[1680666367155,0.23,1910.8,1910.5,0.072]
[1680666370358,0.22732568,1910.8,1910.5,0.072]
[1680666373802,0.921,1910.6,1910.5,0.072]
[1680666374114,1.151,1910.6,1910.5,0.069]
[1680666375112,1.2661,1910.6,1910.5,0.069]
[1680666376435,1.78104215,1910.6,1910.5,0.069]
[1680666377915,1.78104215,1910.6,1910.4,0.00513285]
[1680666378115,0.23,1910.5,1910.4,0.00513285]
[1680666385029,0.923,1910.8,1910.4,0.79030285]
[1680666385231,0.23,1910.7,1910.4,0.78517]
[1680666390127,0.23,1910.7,1910.4,0.26172]
[1680666390337,0.23,1910.7,1910.3,18.72153984]
[1680666390510,0.23,1910.7,1910.3,18.45978984]
[1680666391411,0.46210237,1910.6,1910.3,18.45978984]
[1680666392007,0.46210237,1910.6,1910.4,0.82266674]
[1680666392211,0.46210237,1910.6,1910.5,0.78513]
[1680666396419,0.45876888,1910.6,1910.5,0.78513]
[1680666397344,1.03700001,1911.0,1910.5,0.78513]
[1680666397506,0.23,1910.9,1910.5,0.78513]
[1680666397707,0.23,1910.9,1910.5,0.94590967]
[1680666397906,0.23,1910.9,1910.5,6.99280967]
[1680666398135,0.23,1910.9,1910.5,6.99480967]
[1680666398336,0.46710017,1910.8,1910.5,6.99480967]
[1680666399207,0.46710017,1910.8,1910.5,7.81747641]
[1680666399413,0.46710017,1910.8,1910.6,0.78174764]
[1680666399646,0.46710017,1910.8,1910.6,1.04343764]
[1680666403054,0.46710017,1910.8,1910.6,1.56682764]
[1680666408838,0.46710017,1910.8,1910.6,2.38949438]
[1680666409027,0.46710017,1910.8,1910.6,1.56682764]
[1680666409227,0.46710017,1910.8,1910.7,0.15668276]
[1680666409536,0.46710017,1910.8,1910.7,0.41836276]
[1680666409859,0.46710017,1910.8,1910.7,0.94172276]
[1680666415281,0.46710017,1910.8,1910.7,0.78504]
[1680666418584,0.46710017,1910.8,1910.7,0.26168]
[1680666420272,0.46462023,1910.8,1910.5,6.87669959]
[1680666420480,0.69462023,1910.8,1910.5,7.13327674]
[1680666420678,0.46462023,1910.8,1910.5,6.87669959]
[1680666420875,0.23,1910.7,1910.5,0.82979959]
[1680666421080,0.23,1910.7,1910.5,1.08436674]
[1680666421388,0.46562378,1910.6,1910.5,1.08436674]
[1680666421550,0.23,1910.6,1910.5,1.08436674]
[1680666428253,0.927,1910.9,1910.5,1.87976418]
[1680666428658,0.23,1910.8,1910.5,1.87976418]
[1680666429292,0.23,1910.8,1910.5,1.08436674]
[1680666430457,0.23,1910.8,1910.5,0.82266674]
[1680666431353,0.23,1910.8,1910.5,1.08436674]
[1680666432488,0.23,1910.9,1910.5,1.08436674]
[1680666432696,0.3563,1910.9,1910.5,1.08436674]
[1680666433458,0.3563,1910.9,1910.5,0.82266674]
[1680666433674,0.3563,1910.9,1910.5,1.08436674]
[1680666435603,0.3563,1910.9,1910.6,0.82266674]
[1680666436871,0.23,1910.7,1910.6,0.82266674]
[1680666437265,0.23,1910.7,1910.5,2.1747553]
[1680666437466,0.23,1910.7,1910.6,0.82266674]
[1680666437679,0.23,1910.8,1910.6,0.82266674]
[1680666442472,0.22774628,1910.8,1910.6,0.82266674]
[1680666444300,0.22774628,1910.8,1910.6,1.08435674]
[1680666444495,0.22774628,1910.8,1910.6,0.82266674]
[1680666449412,0.22774628,1910.8,1910.6,1.08435674]
[1680666450519,0.22774628,1910.8,1910.6,0.82266674]
[1680666451017,0.22774628,1910.8,1910.6,1.08435674]
[1680666451216,0.22774628,1910.8,1910.6,0.82266674]
[1680666451421,0.41722401,1910.7,1910.6,0.82266674]
[1680666451580,0.64722401,1910.7,1910.6,0.82266674]
[1680666452404,0.64722401,1910.7,1910.6,1.08435674]
[1680666454287,0.64722401,1910.7,1910.6,0.82266674]
[1680666454510,0.64722401,1910.7,1910.6,1.08435674]
[1680666455683,0.64722401,1910.7,1910.6,0.82266674]
[1680666459527,1.63894641,1910.7,1910.5,0.82266674]
[1680666459726,1.153,1910.6,1910.4,7.06209959]
[1680666459925,1.33949464,1910.6,1910.4,7.06209959]
[1680666460900,1.33949464,1910.6,1910.4,6.23943285]
[1680666461517,1.33949464,1910.6,1910.4,6.2343]
[1680666461732,0.23,1910.6,1910.4,6.2343]
[1680666461935,0.23,1910.7,1910.4,7.31868674]
[1680666462236,0.927,1910.8,1910.4,7.84213674]
[1680666462636,0.927,1910.8,1910.4,7.31868674]
[1680666462999,0.927,1910.8,1910.4,7.34025585]
[1680666463451,0.927,1910.8,1910.5,0.99572559]
[1680666463613,0.927,1910.8,1910.5,0.73402559]
[1680666464209,0.927,1910.8,1910.5,0.99573559]
[1680666464421,0.927,1910.8,1910.5,0.73402559]
[1680666464602,0.927,1910.8,1910.5,0.99572559]
[1680666465036,0.927,1910.8,1910.5,0.73402559]
[1680666465415,0.927,1910.8,1910.5,0.99572559]
[1680666466403,0.42755955,1910.7,1910.5,0.99572559]
[1680666466803,0.42755955,1910.7,1910.6,0.09957256]
[1680666472455,0.923,1910.9,1910.6,0.09957256]
[1680666472614,0.923,1910.9,1910.4,18.8333287]
[1680666472955,0.923,1910.9,1910.4,18.82819585]
[1680666474214,0.923,1910.9,1910.4,18.8333287]
[1680666475210,0.923,1910.9,1910.4,18.82819585]
[1680666476029,0.923,1910.9,1910.4,18.8333287]
[1680666476929,0.923,1910.9,1910.4,18.82819585]
[1680666477130,0.923,1910.9,1910.4,18.8333287]
[1680666477325,0.923,1910.9,1910.4,18.3098887]
[1680666477729,1.05383,1910.9,1910.4,18.0481687]
[1680666477935,0.923,1910.9,1910.4,18.3098887]
[1680666478127,1.09400218,1910.9,1910.4,18.3098887]
[1680666478320,0.23,1910.8,1910.4,18.3098887]
[1680666479635,0.23,1910.8,1910.4,18.0481687]
[1680666479959,0.23,1910.8,1910.4,18.3098887]
[1680666481348,0.42947745,1910.7,1910.4,18.3098887]
[1680666483637,0.42947745,1910.7,1910.4,18.0481687]
[1680666483838,0.42947745,1910.7,1910.4,17.22550196]
[1680666488957,0.42947745,1910.7,1910.4,18.3098887]
[1680666489479,0.42947745,1910.7,1910.4,18.0481687]
[1680666490068,0.42947745,1910.7,1910.4,17.22550196]
[1680666490268,0.42947745,1910.7,1910.4,18.3098887]
[1680666490483,0.42947745,1910.7,1910.4,17.22550196]
[1680666490782,0.23,1910.6,1910.4,17.48722196]
[1680666491081,0.23,1910.6,1910.4,17.22550196]
[1680666491380,0.23,1910.6,1910.4,18.3098887]
[1680666491597,0.23,1910.7,1910.4,18.3098887]
[1680666494498,0.23,1910.7,1910.4,18.0481687]
[1680666495182,0.23,1910.7,1910.4,18.3098887]
[1680666495787,0.23,1910.7,1910.4,18.0481687]
[1680666496289,0.23,1910.7,1910.4,11.8158687]
[1680666496620,0.42886322,1910.6,1910.4,11.8158687]
[1680666496993,2.63428255,1910.5,1910.4,0.002]
[1680666497194,2.63428255,1910.5,1910.1,0.00513285]
[1680666497195,12.48277775,1910.5,1910.1,0.00513285]
[1680666497374,12.48277775,1910.5,1909.9,0.82779959]
[1680666497375,0.49342826,1910.4,1909.9,0.82779959]
[1680666497560,3.02689255,1910.3,1909.8,0.82779959]
[1680666497761,3.02689255,1910.3,1909.8,0.82266674]
[1680666497762,0.53268926,1910.2,1909.8,0.82266674]
[1680666497972,0.921,1910.1,1909.9,0.82266674]
[1680666498177,0.23,1910.0,1909.9,1.08444674]
[1680666498366,0.23,1910.2,1909.9,1.08444674]
[1680666498569,0.23,1910.2,1909.9,1.08957959]
[1680666499158,0.23,1910.2,1909.9,0.26691285]
[1680666500592,0.23,1910.2,1909.9,0.00513285]
[1680666502106,1.153,1910.2,1909.9,0.00513285]
[1680666503411,1.281387,1910.2,1909.9,0.00513285]
[1680666503617,0.927,1910.0,1909.9,0.00513285]
[1680666503783,1.157,1910.0,1909.8,0.00513285]
[1680666503979,0.927,1910.0,1909.8,0.00513285]
[1680666505623,0.927,1910.0,1909.8,0.26693285]
[1680666506520,0.927,1910.0,1909.8,0.00513285]
[1680666506818,0.927,1910.0,1909.8,0.26693285]
[1680666510526,0.927,1910.0,1909.8,0.00513285]
[1680666511508,0.36792027,1909.9,1909.8,0.00513285]
[1680666512216,0.36792027,1909.9,1909.8,0.26693285]
[1680666512419,0.36792027,1909.9,1909.8,0.00513285]
[1680666512811,0.36792027,1909.9,1909.8,0.26693285]
[1680666514039,0.36792027,1909.9,1909.8,1.43932614]
[1680666515098,0.36792027,1909.9,1909.8,4.91785133]
[1680666515293,0.36792027,1909.9,1909.8,5.18557315]
[1680666515603,0.36792027,1909.9,1909.8,6.00720791]
[1680666515802,0.36792027,1909.9,1909.8,5.18757315]
[1680666516399,0.48359855,1909.9,1909.8,5.18757315]
[1680666517327,30.859,1910.6,1909.8,5.18757315]
[1680666517522,30.859,1910.6,1909.9,15.21069703]
[1680666517729,0.23,1910.5,1910.1,0.78529]
[1680666518243,0.23,1910.5,1910.1,0.79042285]
[1680666518733,0.23,1910.5,1910.1,0.78842285]
[1680666518901,0.23,1910.5,1910.1,0.78529]
[1680666519105,0.23,1910.5,1910.2,0.078529]
[1680666519297,0.23,1910.5,1910.3,0.26173]
[1680666521011,0.22628419,1910.5,1910.3,0.26173]
[1680666523736,0.22628419,1910.5,1910.2,0.340279]
[1680666524621,35.51452974,1910.9,1910.3,0.02157025]
[1680666524829,0.23,1910.8,1910.4,0.78516]
[1680666525132,1.05852974,1910.9,1910.4,0.26172]
[1680666525337,1.05052974,1910.9,1910.4,0.99359119]
[1680666533755,1.05052974,1910.9,1910.4,1.51704119]
[1680666533957,0.12952974,1910.9,1910.4,1.51704119]
[1680666535327,0.12952974,1910.9,1910.4,1.5386103]
[1680666535528,0.12952974,1910.9,1910.5,0.15386103]
[1680666535851,0.12952974,1910.9,1910.6,0.78508]
[1680666536158,0.12952974,1910.9,1910.6,1.83187]
[1680666536467,0.11000001,1911.0,1910.6,1.83187]
[1680666536634,0.23,1910.9,1910.6,1.83187]
[1680666536821,0.23,1910.9,1910.6,2.36383022]
[1680666537030,0.23,1910.9,1910.6,8.44913022]
[1680666537226,0.23,1910.9,1910.6,8.45113022]
[1680666541343,1.157,1910.9,1910.6,6.87238]
[1680666541862,1.157,1910.9,1910.6,0.26369]
[1680666542066,1.157,1910.9,1910.6,0.78508]
[1680666544463,1.15341047,1910.9,1910.6,0.26169]
[1680666547365,1.37175152,1910.9,1910.6,0.26169]
[1680666547568,1.37175152,1910.9,1910.6,0.78508]
[1680666547766,1.15341047,1910.9,1910.6,0.78508]
[1680666548976,1.15341047,1910.9,1910.6,1.83187]
[1680666549640,1.15341047,1910.9,1910.6,0.78508]
[1680666550571,1.15341047,1910.9,1910.6,0.26169]
[1680666558562,1.15341047,1910.9,1910.6,0.78508]
[1680666558771,0.11534105,1910.8,1910.6,0.78508]
[1680666558955,0.23,1910.7,1910.6,0.26169]
[1680666559558,0.23,1910.7,1910.5,0.00513285]
[1680666559775,0.23,1910.7,1910.4,12.16195763]
[1680666559776,0.23,1910.7,1910.4,12.16709048]
[1680666560092,0.23,1910.8,1910.4,12.16709048]
[1680666563291,0.927,1910.6,1910.4,0.00713285]
[1680666563491,0.23,1910.5,1910.2,0.82479001]
[1680666564405,0.23,1910.5,1910.2,0.00513285]
[1680666564704,0.23,1910.5,1910.2,0.82479001]
[1680666567080,0.23,1910.5,1910.2,0.81965716]
[1680666569914,0.23,1910.5,1910.2,1.08140716]
[1680666570891,0.006,1910.7,1910.2,3.00663529]
[1680666571092,0.006,1910.8,1910.3,0.81965716]
[1680666571277,0.006,1910.8,1910.4,0.505]
[1680666571480,4.093999,1910.8,1910.4,0.76672]
[1680666571681,0.006,1910.8,1910.4,0.76672]
[1680666572220,0.006,1910.8,1910.4,6.79612]
[1680666572414,0.236,1910.8,1910.4,6.79812]
[1680666579418,0.236,1910.8,1910.4,6.5364]
[1680666579617,0.236,1910.8,1910.4,6.79812]
[1680666579927,0.236,1910.8,1910.4,7.38097287]
[1680666580128,0.236,1910.9,1910.4,8.72408003]
[1680666580435,0.236,1910.9,1910.4,7.90442287]
[1680666580814,0.236,1910.9,1910.4,8.72408003]
[1680666580993,0.236,1910.9,1910.5,0.83483957]
[1680666581194,0.23,1910.9,1910.6,0.26169]
[1680666581795,0.23,1910.9,1910.7,0.296]
[1680666589906,0.22665527,1910.9,1910.7,0.296]
[1680666590106,1.14965527,1910.9,1910.7,0.296]
[1680666593444,0.927,1910.8,1910.7,0.296]
[1680666593645,1.157,1910.8,1910.7,0.296]
[1680666596334,0.11000001,1911.0,1910.7,0.296]
[1680666596920,1.03700001,1911.0,1910.7,0.296]
[1680666597845,0.23,1910.9,1910.7,0.296]
[1680666598476,1.03700001,1911.0,1910.7,1.08104]
[1680666598649,1.03700001,1911.0,1910.7,0.55768]
[1680666599249,1.03700001,1911.0,1910.7,0.296]
[1680666599458,1.03700001,1911.0,1910.7,0.55768]
[1680666600233,1.03700001,1911.0,1910.8,2.63428255]
[1680666600480,0.11000001,1911.0,1910.9,0.02156348]
[1680666600645,0.11000001,1911.0,1910.9,1.07210808]
[1680666600851,0.11000001,1911.0,1910.9,1.35910808]
[1680666601538,0.11000001,1911.0,1910.9,1.09352348]
[1680666607861,0.11000001,1911.0,1910.9,0.287]
[1680666609155,0.11000001,1911.0,1910.9,1.07666778]
[1680666610441,0.11000001,1911.0,1910.9,1.07196]
[1680666611247,0.1074933,1911.0,1910.9,1.07196]
[1680666616753,0.14662646,1911.2,1910.9,1.07196]
[1680666616971,0.23,1911.1,1910.9,1.07196]
[1680666621287,0.23,1911.1,1910.9,0.54865]
[1680666621827,0.26662645,1911.2,1910.9,0.54865]
[1680666622021,0.927,1911.1,1910.9,0.54865]
[1680666622183,0.23,1911.0,1910.9,0.54865]
[1680666625627,0.23,1911.0,1910.9,0.287]
[1680666628038,0.923,1911.0,1910.9,0.287]
[1680666628424,1.153,1911.0,1910.9,0.287]
[1680666629298,1.2683,1911.0,1910.9,0.287]
[1680666632100,0.3453,1911.0,1910.9,0.287]
[1680666632306,0.23,1911.0,1910.9,0.287]
[1680666632537,0.66022538,1911.0,1910.9,0.287]
[1680666641707,0.66022538,1911.0,1910.9,0.54865]
[1680666643220,0.43022538,1911.0,1910.9,0.54865]
[1680666643420,0.43022538,1911.0,1910.9,1.07196]
[1680666643421,0.42639535,1911.0,1910.9,1.07196]
[1680666643652,0.42639535,1911.0,1910.9,1.179156]
[1680666644535,0.96362645,1911.2,1910.9,1.179156]
[1680666645654,0.4393887,1911.1,1910.9,1.179156]
[1680666647546,0.4393887,1911.1,1911.0,0.02156234]
[1680666647753,0.4393887,1911.1,1911.0,0.92655417]
[1680666666627,0.43673698,1911.1,1911.0,0.92655417]
[1680666668254,0.43673698,1911.1,1911.0,0.90499183]
[1680666682694,0.43673698,1911.1,1911.0,0.78492]
[1680666687131,0.43380441,1911.1,1911.0,0.78492]
[1680666687898,0.43380441,1911.1,1911.0,1.60457716]
[1680666695872,0.43380441,1911.1,1911.0,2.69496572]
[1680666696169,0.43380441,1911.1,1911.0,1.60457716]
[1680666697421,0.43380441,1911.1,1911.0,12.86920255]
[1680666697648,0.43380441,1911.1,1911.0,14.50761741]
[1680666697848,0.2523338,1911.1,1911.0,14.50761741]
[1680666698324,0.2523338,1911.1,1911.0,8.05761741]
[1680666698524,0.03662645,1911.2,1911.0,6.42120255]
[1680666698740,0.03662645,1911.2,1911.1,4.64367365]
[1680666699025,0.03662645,1911.2,1911.1,6.47505365]
[1680666699224,0.03662645,1911.2,1911.1,7.5708672]
[1680666699545,0.03662645,1911.2,1911.1,5.73949595]
[1680666699766,0.03662645,1911.2,1911.1,6.47705365]
[1680666699966,0.03662645,1911.2,1911.1,7.57087954]
[1680666700459,0.03662645,1911.2,1911.1,6.2036087]
[1680666701272,0.03662645,1911.2,1911.1,6.47705365]
[1680666702175,0.03662645,1911.2,1911.1,6.49861487]
[1680666702352,0.03662645,1911.2,1911.1,6.22440014]
[1680666704170,0.03662645,1911.2,1911.1,11.90830014]
[1680666705482,0.03662645,1911.2,1911.1,17.43130014]
[1680666705647,0.03662645,1911.2,1911.1,18.79857098]
[1680666706347,0.03662645,1911.2,1911.1,17.70551487]
[1680666706592,0.03662645,1911.2,1911.1,18.79827864]
[1680666707198,0.03662645,1911.2,1911.1,17.4310078]
[1680666708510,0.03662645,1911.2,1911.1,17.43066257]
[1680666708697,0.03662645,1911.2,1911.1,17.70551487]
[1680666709009,0.03662645,1911.2,1911.1,17.43070458]
[1680666709574,0.03662645,1911.2,1911.1,20.70551487]
[1680666711510,0.03662645,1911.2,1911.1,21.79746446]
[1680666711710,0.03662645,1911.2,1911.1,20.43019362]
[1680666711878,0.03662645,1911.2,1911.1,20.70551487]
[1680666713109,0.03662645,1911.2,1911.1,21.79745374]
[1680666713312,0.03662645,1911.2,1911.1,20.4301829]
[1680666719090,0.03662645,1911.2,1911.1,14.9071829]
[1680666721131,0.03662645,1911.2,1911.1,20.70551487]
[1680666721132,2.645e-05,1911.2,1911.1,20.70551487]
[1680666721301,0.933,1912.0,1911.2,0.5]
[1680666721499,0.933,1912.0,1911.5,5.523]
[1680666721697,0.933,1912.0,1911.6,4.46514255]
[1680666722623,0.927,1911.9,1911.6,1.83086]
[1680666722923,0.777,1911.9,1911.6,1.83086]
[1680666727922,0.927,1911.7,1911.6,0.26155]
[1680666728257,0.777,1911.9,1911.6,0.26155]
[1680666728653,0.777,1911.9,1911.5,0.7847]
[1680666728851,0.8547,1911.9,1911.5,0.26156]
[1680666729361,0.777,1911.9,1911.5,0.7847]
[1680666731668,0.008,1912.1,1911.6,2.63428255]
[1680666731990,0.927,1912.0,1911.7,0.26154]
[1680666732195,0.923,1911.9,1911.7,0.78463]
[1680666732957,0.002,1912.2,1911.8,3.13428255]
[1680666733193,0.927,1912.3,1911.9,1.09796826]
[1680666733356,0.927,1912.3,1911.9,1.10267604]
[1680666734290,0.927,1912.3,1911.9,1.09796826]
[1680666736111,9.54240001,1912.5,1912.0,0.02155107]
[1680666736323,0.23,1912.4,1912.1,1.83039]
[1680666736466,1.151,1912.4,1912.1,1.83039]
[1680666737361,1.318,1912.4,1912.1,1.83039]
[1680666737669,1.318,1912.4,1912.1,1.83509778]
[1680666737670,1.088,1912.4,1912.1,1.83509778]
[1680666737957,0.23,1912.3,1912.1,1.83509778]
[1680666738512,0.23,1912.3,1912.1,1.83039]
[1680666739443,0.4747207,1912.2,1912.1,1.83039]
[1680666739642,0.4747207,1912.2,1912.1,2.01389978]
[1680666740512,0.11000001,1912.5,1912.1,2.01389978]
[1680666740711,0.23,1912.4,1912.1,2.01389978]
[1680666740907,0.23,1912.4,1912.1,8.02089978]
[1680666741118,0.23,1912.4,1912.1,8.02760756]
[1680666741316,0.09000001,1912.5,1912.1,8.02760756]
[1680666741740,0.09000001,1912.5,1912.2,0.80276076]
[1680666741955,0.09000001,1912.5,1912.3,0.80593768]
[1680666742278,0.09000001,1912.5,1912.3,0.78439]
[1680666742851,0.09000001,1912.5,1912.3,3.41867255]
[1680666743029,0.09000001,1912.5,1912.3,3.42338033]
[1680666743229,0.09000001,1912.5,1912.3,0.26616778]
[1680666743453,0.09000001,1912.5,1912.3,0.78439]
[1680666743653,0.47058172,1912.4,1912.3,0.78439]
[1680666748463,0.47058172,1912.4,1912.3,0.26146]
[1680666748679,0.47058172,1912.4,1912.3,0.78439]
[1680666749469,0.09000001,1912.5,1912.3,0.78439]
[1680666751086,0.09000001,1912.5,1912.3,0.26146]
[1680666751277,0.23,1912.4,1912.3,0.26146]
[1680666751448,0.09000001,1912.5,1912.3,0.78439]
[1680666752078,1.18400001,1912.5,1912.3,0.26146]
[1680666752676,1.18400001,1912.5,1912.2,0.78441]
[1680666753182,1.31340001,1912.5,1912.2,0.26146]
[1680666753384,0.23,1912.4,1912.2,0.26146]
[1680666755257,1.31340001,1912.5,1912.2,0.26146]
[1680666755453,0.23,1912.4,1912.2,0.26146]
[1680666755679,0.23,1912.4,1912.2,0.78441]
[1680666755883,0.23,1912.4,1912.2,0.26146]
[1680666756963,2.188,1912.3,1912.1,0.002]
[1680666757166,1.318,1912.2,1911.8,0.26152]
[1680666757403,1.093,1911.9,1911.8,0.26152]
[1680666757608,1.093,1911.9,1911.7,0.78932778]
[1680666757788,1.093,1911.9,1911.7,0.26623778]
[1680666758161,1.093,1911.9,1911.6,5.72900778]
[1680666758362,1.093,1911.9,1911.6,5.99054778]
[1680666758575,1.093,1911.9,1911.6,6.51366778]
[1680666758775,1.2023,1911.9,1911.6,0.00670778]
[1680666758995,1.089,1911.7,1911.5,0.26156]
[1680666759176,1.089,1911.7,1911.5,0.00470778]
[1680666759532,1.089,1911.7,1911.4,5.99058778]
[1680666759733,1.089,1911.7,1911.5,0.26157]
[1680666760070,4.6362,1912.0,1911.5,0.26157]
[1680666760277,0.23,1911.9,1911.5,0.78471]
[1680666760483,1.318,1911.9,1911.5,0.78471]
[1680666765132,1.31730907,1911.9,1911.5,0.78941778]
[1680666765286,1.088,1911.9,1911.5,0.78941778]
[1680666767603,1.088,1911.9,1911.5,1.54542356]
[1680666769822,0.23,1911.8,1911.5,1.54542356]
[1680666770220,0.23,1911.8,1911.5,0.00470778]
[1680666770410,1.324,1911.8,1911.5,0.00470778]
[1680666770824,1.324,1911.8,1911.4,0.00470778]
[1680666771029,1.324,1911.8,1911.4,0.26628778]
[1680666771413,1.324,1911.8,1911.4,0.26158]
[1680666771620,0.1324,1911.7,1911.3,6.14945674]
[1680666771831,1.094,1911.5,1911.3,0.02826674]
[1680666772102,1.319,1911.4,1911.2,0.26630778]
[1680666772341,1.089,1911.4,1911.2,0.00470778]
[1680666772537,1.089,1911.4,1911.1,1.60812321]
[1680666772736,1.089,1911.4,1911.1,1.74056013]
[1680666773405,1.089,1911.4,1911.1,0.9220047]
[1680666775147,1.089,1911.4,1911.1,0.3987547]
[1680666775519,1.1979,1911.4,1911.1,0.1371447]
[1680666775715,0.1089,1911.4,1911.1,0.1371447]
[1680666775916,1.088,1911.4,1911.1,0.39405692]
[1680666777959,0.888,1911.4,1911.1,0.39405692]
[1680666778865,0.688,1911.4,1911.1,0.39405692]
[1680666779766,0.488,1911.4,1911.1,0.39405692]
[1680666780269,0.288,1911.4,1911.1,0.91730692]
[1680666780430,0.088,1911.4,1911.1,0.91730692]
[1680666780638,1.204,1911.6,1911.1,0.91730692]
[1680666780838,1.004,1911.6,1911.1,0.91730692]
[1680666781145,0.804,1911.6,1911.1,1.09136393]
[1680666781764,0.604,1911.6,1911.1,1.09136393]
[1680666782074,4.5599,1911.7,1911.1,1.09136393]
[1680666782219,1.088,1911.5,1911.1,1.09136393]
[1680666782570,1.088,1911.5,1911.1,2.14258171]
[1680666782735,1.088,1911.5,1911.3,0.2616]
[1680666782932,0.23,1911.4,1911.3,0.2616]
[1680666783137,0.23,1911.4,1911.3,0.7848]
[1680666784751,1.088,1911.5,1911.3,0.7848]
[1680666785059,1.094,1911.6,1911.3,0.7848]
[1680666785256,1.094,1911.6,1911.4,0.07848]
[1680666785557,1.094,1911.6,1911.5,0.78471]
[1680666785857,1.324,1911.6,1911.5,0.78471]
[1680666786469,1.324,1911.6,1911.5,0.26157]
[1680666787053,1.324,1911.6,1911.4,0.26157]
[1680666787390,1.318,1911.5,1911.4,0.26157]
[1680666787693,1.318,1911.5,1911.4,0.78474]
[1680666789781,1.318,1911.5,1911.4,0.26157]
[1680666790006,1.318,1911.5,1911.2,5.70000778]
[1680666790183,1.089,1911.4,1911.3,0.2616]
[1680666790391,1.319,1911.4,1911.2,7.19228407]
[1680666790594,1.319,1911.4,1911.3,0.2616]
[1680666793799,1.319,1911.4,1911.2,0.52322]
[1680666793975,1.088,1911.3,1911.2,0.71131217]
[1680666794178,1.088,1911.3,1911.2,0.97292217]
[1680666794713,1.088,1911.3,1911.2,0.18809217]
[1680666794912,1.318,1911.3,1911.1,0.57282171]
[1680666795070,0.23,1911.2,1911.1,0.3987647]
[1680666796204,1.323,1911.2,1911.1,0.00470778]
[1680666796512,1.323,1911.2,1911.0,0.00470778]
[1680666796681,1.094,1911.1,1910.9,1.08490321]
[1680666797523,1.094,1911.1,1911.0,0.81855543]
[1680666798327,1.324,1911.1,1911.0,1.08019543]
[1680666798535,1.324,1911.1,1911.0,0.82326321]
[1680666798746,1.324,1911.1,1911.0,1.08019543]
[1680666799075,1.324,1911.1,1911.0,0.26164]
[1680666799433,1.324,1911.1,1910.9,0.9553222]
[1680666799629,1.324,1911.1,1911.0,0.81855543]
[1680666800473,0.23,1911.1,1911.0,0.81855543]
[1680666800934,1.324,1911.1,1910.9,0.82326321]
[1680666801130,0.23,1911.0,1910.9,0.82326321]
[1680666802735,0.23,1911.0,1910.8,0.82526321]
[1680666802736,1.87245,1911.0,1910.8,0.82526321]
[1680666802955,1.088,1910.9,1910.7,0.98804922]
[1680666803193,1.094,1910.8,1910.7,0.98804922]
[1680666803329,1.324,1910.8,1910.7,0.16949379]
[1680666803536,1.324,1910.8,1910.7,0.98804922]
[1680666803844,1.32046033,1910.8,1910.7,0.98334144]
[1680666804894,1.48766536,1910.8,1910.7,0.98334144]
[1680666805189,1.48766536,1910.8,1910.7,0.85519093]
[1680666805333,1.32046033,1910.8,1910.7,0.0366355]
[1680666806736,0.23,1910.8,1910.7,0.0366355]
[1680666806938,0.23,1910.9,1910.7,0.0366355]
[1680666809095,0.41315,1910.9,1910.7,0.0366355]
[1680666810288,0.86442326,1910.9,1910.7,0.0366355]
[1680666812091,1.088,1910.8,1910.7,0.0366355]
[1680666812297,1.50116,1910.8,1910.7,0.0366355]
[1680666813225,1.318,1910.8,1910.7,0.0366355]
[1680666821323,5.22044255,1910.8,1910.7,0.0366355]
[1680666821491,6.37934513,1910.8,1910.7,0.0366355]
[1680666822097,5.13334513,1910.8,1910.7,0.0366355]
[1680666822537,5.13934513,1910.8,1910.7,0.0366355]
[1680666824965,5.49703314,1910.8,1910.7,0.0366355]
[1680666829560,5.13070314,1910.8,1910.7,0.0366355]
[1680666832990,4.94754314,1910.8,1910.7,0.0366355]
[1680666833188,5.12870314,1910.8,1910.7,0.0366355]
[1680666833351,5.13070314,1910.8,1910.7,0.0366355]
[1680666835398,4.94754314,1910.8,1910.7,0.0366355]
[1680666835571,4.94554314,1910.8,1910.7,0.0366355]
[1680666835957,5.12870314,1910.8,1910.7,0.0366355]
[1680666836307,4.94754314,1910.8,1910.7,0.0366355]
[1680666836456,3.97180056,1910.8,1910.7,0.0366355]
[1680666840805,1.15435801,1910.8,1910.7,0.0366355]
[1680666840989,0.002,1911.0,1910.7,0.0366355]
[1680666841304,4.11013,1911.2,1910.7,0.0366355]